[Event "GER-chT States Women 2022"]
[Site "Braunfels"]
[Date "2022.06.19"]
[Round "5.36"]
[White "Ramm, Madlen"]
[Black "Pavlov, Liliane"]
[Result "0-1"]
[ECO "B23"]
[WhiteElo "1732"]
[BlackElo "1742"]
[Annotator "NA RC"]
[PlyCount "72"]
[EventDate "2022.06.15"]
[EventType "swiss"]
[EventCountry "GER"]
[SourceTitle "playchess.com"]
[Source "ChessBase"]
[SourceQuality "1"]
[TimeControl "40/5400+30:1800+30"]

1. e4 {[%emt 0:00:02]} c5 {[%emt 0:00:09]} 2. Nc3 {[%emt 0:00:15]} d6 {[%emt 0:00:11]} 3. f4 {[%emt 0:01:14]} Nf6 {[%emt 0:00:36]} 4. Bb5+ {[%emt 0:02:30]} Bd7 {[%emt 0:00:28]} 5. Bxd7+ {[%emt 0:00:07]} Qxd7 {[%emt 0:00:16]} 6. d3 {[%emt 0:01:38]} Nc6 {[%emt 0:00:32]} 7. Nf3 {[%emt 0:04:12]} g6 {[%emt 0:00:40]} 8. O-O {[%emt 0:02:51]} Bg7 {[%emt 0:00:13]} 9. Qe1 {[%emt 0:00:58]} O-O {[%emt 0:02:37]} 10. a3 {[%emt 0:05:03]} a6 {[%emt 0:02:42]} 11. Qh4 {[%emt 0:01:01]} Qg4 {[%emt 0:02:52]} 12. Qxg4 {[%emt 0:02:04]} Nxg4 {[%emt 0:00:14]} 13. h3 {[%emt 0:02:03]} Nf6 {[%emt 0:00:15]} 14. Ne2 {[%emt 0:03:52]} b5 {[%emt 0:03:49]} 15. c3 {[%emt 0:07:31]} Rfb8 {[%emt 0:06:13]} 16. Rb1 {[%emt 0:19:16]} b4 {[%emt 0:02:59]} 17. axb4 {[%emt 0:04:49]} cxb4 {[%emt 0:00:38]} 18. c4 {[%emt 0:00:57]} a5 {[%emt 0:02:12]} 19. e5 {[%emt 0:07:14]} Nd7 {[%emt 0:08:02]} 20. d4 {[%emt 0:01:04]} a4 {[%emt 0:01:50]} 21. Nd2 {[%emt 0:10:50]} dxe5 {[%emt 0:04:45]} 22. fxe5 {[%emt 0:00:25]} Bh6 {[%emt 0:00:21]} 23. Rf3 {[%emt 0:03:19]} Nb6 {[%emt 0:04:18]} 24. h4 {[%emt 0:02:03]} Na5 {[%emt 0:03:16]} 25. c5 {[%emt 0:00:52]} Nd5 {[%emt 0:01:09]} 26. g4 {[%emt 0:01:34]} Be3+ {[%emt 0:01:38]} 27. Kg2 {[%emt 0:01:10]} a3 {[%emt 0:17:57]} 28. bxa3 {[%emt 0:01:13]} bxa3 {[%emt 0:03:30]} 29. Rxb8+ {[%emt 0:04:20]} Rxb8 {[%emt 0:00:13]} 30. Nf1 {[%emt 0:00:46]} a2 {[%emt 0:01:39]} 31. Nxe3 {[%emt 0:00:52]} Nxe3+ {[%emt 0:01:18]} 32. Bxe3 {[%emt 0:00:39]} a1=Q {[%emt 0:00:19]} 33. h5 {[%emt 0:02:05]} Qa2 {[%emt 0:01:11]} 34. Rf2 {[%emt 0:00:36]} Qd5+ {[%emt 0:02:14]} 35. Rf3 {[%emt 0:00:50]} Rb2 {[%emt 0:01:22]} 36. Kf2 {[%emt 0:00:21]} Qc4 {[%emt 0:00:54]} 0-1

[Event "GER-chT States Women 2022"]
[Site "Braunfels"]
[Date "2022.06.19"]
[Round "5.37"]
[White "Prinzen, Siri Marleen"]
[Black "Marx, Christina"]
[Result "1/2-1/2"]
[ECO "A45"]
[WhiteElo "1744"]
[BlackElo "1587"]
[Annotator "NA RC"]
[PlyCount "54"]
[EventDate "2022.06.15"]
[EventType "swiss"]
[EventCountry "GER"]
[SourceTitle "playchess.com"]
[Source "ChessBase"]
[SourceQuality "1"]
[TimeControl "40/5400+30:1800+30"]

1. d4 {[%emt 0:00:01]} Nf6 {[%emt 0:00:07]} 2. Bf4 {[%emt 0:00:04]} e6 {[%emt 0:00:19]} 3. e3 {[%emt 0:00:07]} b6 {[%emt 0:00:13]} 4. c4 {[%emt 0:01:50]} Bb4+ {[%emt 0:00:33]} 5. Nd2 {[%emt 0:00:36]} Bb7 {[%emt 0:01:13]} 6. a3 {[%emt 0:00:25]} Be7 {[%emt 0:02:54]} 7. Ngf3 {[%emt 0:01:20]} d6 {[%emt 0:00:13]} 8. Be2 {[%emt 0:03:29]} Nbd7 {[%emt 0:00:13]} 9. Qc2 {[%emt 0:02:25]} c5 {[%emt 0:01:37]} 10. Rc1 {[%emt 0:06:28]} Nh5 {[%emt 0:01:11]} 11. Bg3 {[%emt 0:00:47]} Nxg3 {[%emt 0:02:11]} 12. hxg3 {[%emt 0:00:12]} h6 {[%emt 0:03:10]} 13. Ne4 {[%emt 0:06:35]} Nf6 {[%emt 0:06:34]} 14. Qa4+ {[%emt 0:05:08]} Qd7 {[%emt 0:00:50]} 15. Qxd7+ {[%emt 0:00:22]} Nxd7 {[%emt 0:02:10]} 16. Nc3 {[%emt 0:02:13]} O-O {[%emt 0:02:27]} 17. d5 {[%emt 0:02:16]} Nf6 {[%emt 0:01:59]} 18. e4 {[%emt 0:02:13]} e5 {[%emt 0:07:40]} 19. Nh4 {[%emt 0:03:02]} Bc8 {[%emt 0:06:19]} 20. Nf5 {[%emt 0:07:00]} Bxf5 {[%emt 0:02:03]} 21. exf5 {[%emt 0:00:01]} Kh7 {[%emt 0:01:35]} 22. g4 {[%emt 0:02:37]} Ne8 {[%emt 0:01:15]} 23. Ne4 {[%emt 0:04:05]} g5 {[%emt 0:02:57]} 24. Bd1 {[%emt 0:01:47]} f6 {[%emt 0:01:26]} 25. Ba4 {[%emt 0:01:01]} Nc7 {[%emt 0:00:39]} 26. Nc3 {[%emt 0:00:41]} a6 {[%emt 0:00:39]} 27. Bc6 {[%emt 0:02:48]} Rab8 {[%emt 0:00:07]} 1/2-1/2

[Event "GER-chT States Women 2022"]
[Site "Braunfels"]
[Date "2022.06.19"]
[Round "5.38"]
[White "Mueller, Riyanna"]
[Black "Albayrak, Berrak"]
[Result "0-1"]
[ECO "B08"]
[WhiteElo "1521"]
[BlackElo "1569"]
[Annotator "NA RC"]
[PlyCount "62"]
[EventDate "2022.06.15"]
[EventType "swiss"]
[EventCountry "GER"]
[SourceTitle "playchess.com"]
[Source "ChessBase"]
[SourceQuality "1"]
[TimeControl "40/5400+30:1800+30"]

1. e4 {[%emt 0:00:03]} d6 {[%emt 0:00:05]} 2. d4 {[%emt 0:00:05]} Nf6 {[%emt 0:00:05]} 3. Nc3 {[%emt 0:00:06]} g6 {[%emt 0:00:08]} 4. Nf3 {[%emt 0:00:07]} Bg7 {[%emt 0:00:06]} 5. Be3 {[%emt 0:00:06]} O-O {[%emt 0:00:09]} 6. Qd2 {[%emt 0:00:13]} Re8 {[%emt 0:06:45]} 7. Bh6 {[%emt 0:03:22]} Bh8 {[%emt 0:00:34]} 8. O-O-O {[%emt 0:00:16]} c6 {[%emt 0:03:50]} 9. h4 {[%emt 0:02:24]} b5 {[%emt 0:13:22]} 10. Bd3 {[%emt 0:03:31]} e5 {[%emt 0:10:14]} 11. d5 {[%emt 0:12:21]} b4 {[%emt 0:08:05]} 12. Ne2 {[%emt 0:01:38]} cxd5 {[%emt 0:08:03]} 13. Bb5 {[%emt 0:04:40]} Bd7 {[%emt 0:00:49]} 14. Bxd7 {[%emt 0:01:05]} Qxd7 {[%emt 0:05:07]} 15. exd5 {[%emt 0:00:53]} Qa4 {[%emt 0:06:58]} 16. Kb1 {[%emt 0:06:28]} Rc8 {[%emt 0:03:09]} 17. Ne1 {[%emt 0:05:22]} Na6 {[%emt 0:02:28]} 18. h5 {[%emt 0:00:58]} Rc7 {[%emt 0:03:54]} 19. hxg6 {[%emt 0:02:23]} fxg6 {[%emt 0:00:18]} 20. f4 {[%emt 0:03:19]} Rac8 {[%emt 0:08:22]} 21. fxe5 {[%emt 0:03:12]} Ne4 {[%emt 0:03:33]} 22. Qf4 {[%emt 0:03:04]} Rxc2 {[%emt 0:04:01]} 23. Rf1 {[%emt 0:07:41]} Rxb2+ {[%emt 0:01:20]} 24. Kxb2 {[%emt 0:00:30]} Bxe5+ {[%emt 0:00:22]} 25. Qxe5 {[%emt 0:00:30]} dxe5 {[%emt 0:00:05]} 26. Rd3 {[%emt 0:00:59]} Nd6 {[%emt 0:04:47]} 27. Ng3 {[%emt 0:02:54]} e4 {[%emt 0:03:47]} 28. Nxe4 {[%emt 0:06:02]} Nxe4 {[%emt 0:02:10]} 29. Rdf3 {[%emt 0:01:15]} Qe8 {[%emt 0:00:21]} 30. Nd3 {[%emt 0:00:46]} Nac5 {[%emt 0:01:20]} 31. Ne5 {[%emt 0:02:31]} Qxe5+ {[%emt 0:00:14]} 0-1

[Event "GER-chT States Women 2022"]
[Site "Braunfels"]
[Date "2022.06.19"]
[Round "5.39"]
[White "Schilay, Maria"]
[Black "Anisimova, Mariya"]
[Result "0-1"]
[ECO "C47"]
[WhiteElo "1568"]
[BlackElo "1386"]
[Annotator "NA RC"]
[PlyCount "66"]
[EventDate "2022.06.15"]
[EventType "swiss"]
[EventCountry "GER"]
[SourceTitle "playchess.com"]
[Source "ChessBase"]
[SourceQuality "1"]
[TimeControl "40/5400+30:1800+30"]

1. e4 {[%emt 0:00:05]} e5 {[%emt 0:00:04]} 2. Nf3 {[%emt 0:00:08]} Nc6 {[%emt 0:00:06]} 3. Nc3 {[%emt 0:00:10]} Nf6 {[%emt 0:00:10]} 4. a3 {[%emt 0:00:21]} Bc5 {[%emt 0:01:04]} 5. Nxe5 {[%emt 0:01:04]} Nxe5 {[%emt 0:02:56]} 6. d4 {[%emt 0:00:25]} Bxd4 {[%emt 0:00:06]} 7. Qxd4 {[%emt 0:00:15]} d6 {[%emt 0:00:13]} 8. f4 {[%emt 0:02:19]} Nc6 {[%emt 0:00:12]} 9. Qd3 {[%emt 0:03:15]} Be6 {[%emt 0:02:59]} 10. Be2 {[%emt 0:02:47]} Qe7 {[%emt 0:01:29]} 11. b3 {[%emt 0:10:50]} O-O-O {[%emt 0:02:34]} 12. Bb2 {[%emt 0:02:46]} Kb8 {[%emt 0:13:10]} 13. O-O-O {[%emt 0:03:21]} d5 {[%emt 0:10:47]} 14. e5 {[%emt 0:09:57]} Ne4 {[%emt 0:03:23]} 15. Qf3 {[%emt 0:26:56]} f5 {[%emt 0:06:32]} 16. exf6 {[%emt 0:07:18]} Nxf6 {[%emt 0:00:08]} 17. Rhe1 {[%emt 0:02:00]} Bg4 {[%emt 0:07:43]} 18. Qd3 {[%emt 0:02:37]} Qf7 {[%emt 0:02:36]} 19. g3 {[%emt 0:05:37]} h5 {[%emt 0:09:06]} 20. Bf3 {[%emt 0:02:50]} Bxf3 {[%emt 0:03:25]} 21. Qxf3 {[%emt 0:00:18]} Ne7 {[%emt 0:01:41]} 22. Rd2 {[%emt 0:02:55]} Rd7 {[%emt 0:01:17]} 23. Rde2 {[%emt 0:03:06]} Rhd8 {[%emt 0:01:27]} 24. Qf2 {[%emt 0:03:38]} Nc8 {[%emt 0:02:16]} 25. Nb5 {[%emt 0:04:38]} Ne4 {[%emt 0:04:12]} 26. Qg2 {[%emt 0:01:09]} a6 {[%emt 0:00:48]} 27. Nd4 {[%emt 0:00:35]} Ncd6 {[%emt 0:02:46]} 28. Nf3 {[%emt 0:00:50]} Re7 {[%emt 0:01:10]} 29. Ng5 {[%emt 0:00:51]} Qf5 {[%emt 0:01:09]} 30. Nxe4 {[%emt 0:00:21]} Nxe4 {[%emt 0:00:16]} 31. Be5 {[%emt 0:00:18]} Rxe5 {[%emt 0:05:47]} 32. Rxe4 {[%emt 0:01:26]} Rxe4 {[%emt 0:00:13]} 33. Rxe4 {[%emt 0:00:29]} Qxe4 {[%emt 0:00:06]} 0-1

[Event "GER-chT States Women 2022"]
[Site "Braunfels"]
[Date "2022.06.19"]
[Round "5.40"]
[White "Perovic-Ottstadt, Sanja"]
[Black "Alferova, Emily"]
[Result "0-1"]
[ECO "D05"]
[WhiteElo "1507"]
[BlackElo "1536"]
[Annotator "NA RC"]
[PlyCount "74"]
[EventDate "2022.06.15"]
[EventType "swiss"]
[EventCountry "GER"]
[SourceTitle "playchess.com"]
[Source "ChessBase"]
[SourceQuality "1"]
[TimeControl "40/5400+30:1800+30"]

1. d4 {[%emt 0:00:03]} d5 {[%emt 0:00:05]} 2. Nf3 {[%emt 0:00:07]} Nf6 {[%emt 0:00:04]} 3. e3 {[%emt 0:00:06]} e6 {[%emt 0:00:06]} 4. Bd3 {[%emt 0:00:06]} c5 {[%emt 0:00:05]} 5. c3 {[%emt 0:00:07]} Nbd7 {[%emt 0:00:25]} 6. Nbd2 {[%emt 0:00:19]} b6 {[%emt 0:00:21]} 7. O-O {[%emt 0:00:25]} Bb7 {[%emt 0:00:43]} 8. Re1 {[%emt 0:00:35]} Be7 {[%emt 0:06:46]} 9. e4 {[%emt 0:01:17]} cxd4 {[%emt 0:02:46]} 10. Nxd4 {[%emt 0:02:19]} dxe4 {[%emt 0:03:02]} 11. Nxe4 {[%emt 0:00:13]} O-O {[%emt 0:02:29]} 12. Bg5 {[%emt 0:02:47]} h6 {[%emt 0:04:41]} 13. Bh4 {[%emt 0:08:07]} Re8 {[%emt 0:13:54]} 14. Nf3 {[%emt 0:03:29]} Qc7 {[%emt 0:09:58]} 15. Nxf6+ {[%emt 0:02:35]} Bxf6 {[%emt 0:07:41]} 16. Bxf6 {[%emt 0:01:14]} Nxf6 {[%emt 0:00:06]} 17. Qe2 {[%emt 0:01:00]} Red8 {[%emt 0:03:29]} 18. Rad1 {[%emt 0:00:52]} a6 {[%emt 0:08:57]} 19. Bc2 {[%emt 0:02:50]} Qe7 {[%emt 0:04:59]} 20. Rxd8+ {[%emt 0:04:11]} Rxd8 {[%emt 0:00:05]} 21. Rd1 {[%emt 0:00:21]} Rxd1+ {[%emt 0:02:39]} 22. Qxd1 {[%emt 0:00:40]} Qc7 {[%emt 0:00:18]} 23. h3 {[%emt 0:01:47]} Nd5 {[%emt 0:09:43]} 24. Qd4 {[%emt 0:20:28]} Nf4 {[%emt 0:05:44]} 25. Qe5 {[%emt 0:01:34]} Qxe5 {[%emt 0:00:44]} 26. Nxe5 {[%emt 0:00:08]} Bxg2 {[%emt 0:02:01]} 27. h4 {[%emt 0:00:57]} Bb7 {[%emt 0:01:17]} 28. Nd7 {[%emt 0:00:53]} Nd5 {[%emt 0:02:37]} 29. c4 {[%emt 0:01:19]} Bc8 {[%emt 0:01:51]} 30. cxd5 {[%emt 0:03:25]} Bxd7 {[%emt 0:00:07]} 31. dxe6 {[%emt 0:00:28]} Bxe6 {[%emt 0:00:04]} 32. b3 {[%emt 0:00:20]} Kf8 {[%emt 0:00:12]} 33. Be4 {[%emt 0:00:33]} Ke7 {[%emt 0:00:27]} 34. f4 {[%emt 0:00:39]} a5 {[%emt 0:00:26]} 35. f5 {[%emt 0:00:53]} Bd7 {[%emt 0:00:12]} 36. Kf2 {[%emt 0:00:38]} Kf6 {[%emt 0:00:13]} 37. Ke3 {[%emt 0:01:35]} Bxf5 {[%emt 0:00:10]} 0-1